bitfinex/quotes_SOLUSD_20250823
["timestamp","ask_amount","ask_price","bid_price","bid_amount"]
[1755909718970,81.84890815,199.38,199.37,0.03]
[1755909719191,85.46127216,199.38,199.37,0.03]
[1755909720473,62.07801937,199.38,199.37,0.03]
[1755909725906,59.46127216,199.38,199.37,0.03]
[1755909727395,59.40127216,199.38,199.37,0.03]
[1755909728994,55.78890815,199.38,199.37,0.03]
[1755909729311,20.22127216,199.38,199.37,0.03]
[1755909729507,59.38127216,199.38,199.37,0.03]
[1755909729691,20.22127216,199.38,199.37,0.03]
[1755909729895,58.37694902,199.38,199.37,0.03]
[1755909730213,59.20911059,199.38,199.37,0.03]
[1755909730810,59.35127216,199.38,199.37,0.03]
[1755909736318,54.76458501,199.38,199.37,0.03]
[1755909736521,19.21694902,199.38,199.37,0.03]
[1755909736697,58.72127216,199.38,199.37,0.03]
[1755909737208,84.72127216,199.38,199.37,0.03]
[1755909738891,85.41127216,199.38,199.37,0.03]
[1755909739315,46.19127216,199.38,199.37,0.03]
[1755909739490,85.45127216,199.38,199.37,0.03]
[1755909740402,84.76127216,199.38,199.37,0.03]
[1755909741998,81.14890815,199.38,199.37,0.03]
[1755909742297,84.76127216,199.38,199.37,0.03]
[1755909742816,81.14890815,199.38,199.37,0.03]
[1755909743020,15.88890815,199.38,199.37,0.7]
[1755909743188,54.98674658,199.38,199.37,0.7]
[1755909743392,55.12890815,199.38,199.37,0.7]
[1755909743593,54.98674658,199.38,199.37,0.7]
[1755909744012,3.61236401,199.42,199.37,4.45883315]
[1755909744208,13.59559401,199.4,199.38,4.42883315]
[1755909744514,3.612364,199.4,199.39,3.75864548]
[1755909744717,13.59559401,199.42,199.39,3.75864548]
[1755909744913,52.85559401,199.41,199.4,3.75864548]
[1755909745416,52.85559401,199.41,199.38,0.67]
[1755909745718,52.85559401,199.41,199.39,3.75832169]
[1755909745916,39.26,199.4,199.38,0.67]
[1755909746120,39.26,199.4,199.39,3.75832263]
[1755909746416,39.26,199.4,199.39,3.75758491]
[1755909746793,13.59559401,199.41,199.39,3.75758491]
[1755909746989,39.24,199.4,199.38,0.67]
[1755909747222,42.997585,199.4,199.39,3.75756771]
[1755909747716,13.87991715,199.39,199.37,0.03]
[1755909747900,52.83559401,199.38,199.37,0.03]
[1755909748105,13.59559401,199.38,199.37,4.49731287]
[1755909748409,52.85559401,199.38,199.37,3.78731287]
[1755909748618,52.85559401,199.38,199.37,4.49731287]
[1755909748798,56.64290701,199.38,199.37,4.49731287]
[1755909748993,43.047313,199.38,199.37,4.49731287]
[1755909749928,39.26,199.38,199.37,4.49731287]
[1755909750829,39.26,199.38,199.37,3.78731287]
[1755909751123,43.757313,199.38,199.37,3.78731287]
[1755909751729,61.93959416,199.38,199.37,3.78731287]
[1755909751901,61.93959416,199.38,199.37,0.03]
[1755909752604,57.59723015,199.38,199.37,0.03]
[1755909753622,18.09290701,199.38,199.37,0.03]
[1755909753924,57.33290701,199.38,199.37,0.03]
[1755909754312,22.67959416,199.38,199.37,0.03]
[1755909754529,61.91959416,199.38,199.37,0.03]
[1755909754910,58.30723015,199.38,199.37,0.03]
[1755909755313,137.30723015,199.38,199.37,0.03]
[1755909755513,136.61723015,199.38,199.37,0.03]
[1755909755931,136.33290701,199.38,199.37,0.03]
[1755909756735,122.737313,199.38,199.37,0.03]
[1755909756939,122.717313,199.38,199.37,4.49549224]
[1755909757537,122.717313,199.38,199.37,3.78549224]
[1755909757837,122.717313,199.38,199.37,0.03]
[1755909759948,122.717313,199.38,199.37,3.78525267]
[1755909760122,122.697313,199.38,199.37,3.78525267]
[1755909760931,83.497313,199.38,199.37,3.78525267]
[1755909761132,43.697313,199.38,199.37,3.78525267]
[1755909761724,4.497313,199.38,199.37,3.78525267]
[1755909761945,43.677313,199.38,199.37,3.78525267]
[1755909763637,39.18,199.38,199.37,4.49525267]
[1755909764433,39.18,199.38,199.37,0.74]
[1755909764662,39.18,199.38,199.37,4.49468972]
[1755909764958,39.18,199.38,199.37,0.74]
[1755909765137,39.18,199.38,199.37,4.49468972]
[1755909765549,39.18,199.38,199.37,3.78468972]
[1755909765861,43.67469,199.38,199.37,3.78468972]
[1755909766560,44.36469,199.38,199.37,3.78468972]
[1755909767149,43.67469,199.38,199.37,3.78468972]
[1755909769168,44.36469,199.38,199.37,3.78468972]
[1755909771552,43.67469,199.38,199.37,3.78468972]
[1755909771760,43.59469,199.38,199.37,3.78468972]
[1755909773146,43.59469,199.38,199.37,0.03]
[1755909773352,43.59469,199.38,199.37,3.78522447]
[1755909774072,43.59469,199.38,199.37,3.78535197]
[1755909776059,60.48690297,199.38,199.37,0.03]
[1755909779085,64.49434039,199.38,199.37,0.03]
[1755909779264,60.48690297,199.38,199.37,0.03]
[1755909779978,13.87991715,199.36,199.35,0.03]
[1755909780156,55.28221297,199.36,199.35,0.03]
[1755909780355,57.26232557,199.36,199.35,0.03]
[1755909781370,60.89473399,199.36,199.35,0.03]
[1755909781974,57.26232557,199.36,199.35,0.03]
[1755909782689,23.59559401,199.34,199.33,0.03]
[1755909782987,13.87991715,199.33,199.21,0.68]
[1755909783281,18.18232557,199.33,199.2,3.63240842]
[1755909783459,53.01991715,199.32,199.22,0.68]
[1755909783779,57.32232557,199.32,199.22,0.68]
[1755909783978,60.28473357,199.32,199.22,0.68]
[1755909784188,60.28473357,199.32,199.17,0.1]
[1755909784189,57.32232515,199.32,199.26,0.68]
[1755909784393,60.95473357,199.32,199.26,0.68]
[1755909784557,60.95473357,199.32,199.24,0.68]
[1755909784874,21.81473357,199.32,199.26,0.68]
[1755909785286,60.95473357,199.32,199.26,0.68]
[1755909785653,60.95473357,199.32,199.22,0.68]
[1755909785850,13.59559401,199.22,199.21,0.68]
[1755909786073,52.75559401,199.22,199.21,0.68]
[1755909786455,39.16,199.22,199.21,0.68]
[1755909786662,42.792408,199.22,199.21,4.31240842]
[1755909786859,39.16,199.22,199.21,4.31240842]
[1755909787060,39.16,199.22,199.21,0.68]
[1755909787282,39.16,199.22,199.21,4.40483583]
[1755909787479,39.16,199.22,199.21,0.68]
[1755909791265,39.16,199.22,199.21,0.71]
[1755909803116,39.16,199.22,199.21,0.03]
[1755909803269,39.83,199.22,199.21,0.03]
[1755909804278,39.16,199.22,199.21,0.03]
[1755909805488,39.83,199.22,199.21,0.03]
[1755909807404,39.16,199.22,199.21,0.03]
[1755909818204,39.86,199.22,199.21,0.03]
[1755909818511,42.18601782,199.22,199.21,0.03]
[1755909821501,39.1,199.22,199.21,0.03]
[1755909823217,39.8,199.22,199.21,0.03]
[1755909824102,39.1,199.22,199.21,0.03]
[1755909824698,39.8,199.22,199.21,0.03]
[1755909824912,42.12601782,199.22,199.21,0.03]
[1755909825701,39.1,199.22,199.21,0.03]
[1755909828217,39.8,199.22,199.21,0.03]
[1755909830417,39.8,199.22,199.21,3.66741903]
[1755909833031,42.12601782,199.22,199.21,3.66741903]
[1755909833327,39.1,199.22,199.21,3.66741903]
[1755909833702,39.8,199.22,199.21,3.66741903]
[1755909833904,42.12601782,199.22,199.21,3.66741903]
[1755909834342,65.31000625,199.22,199.21,0.03]
[1755909834650,39.87991715,199.2,199.19,0.03]
[1755909834808,81.30593497,199.2,199.19,0.03]
[1755909835006,82.00593497,199.2,199.19,0.03]
[1755909835409,13.87991715,199.19,199.17,0.03]
[1755909835628,55.02161183,199.18,199.17,0.03]
[1755909835927,58.04762883,199.18,199.17,0.03]
[1755909836323,58.04762883,199.18,199.02,0.71]
[1755909836324,2.32601782,199.08,199.02,0.71]
[1755909836530,2.32601782,199.06,199.03,3.7506949]
[1755909836722,41.42601782,199.05,199.04,3.7506949]
[1755909837523,42.10601782,199.05,199.0,5.0]
[1755909837732,2.32601782,199.02,199.01,3.57586741]
[1755909837915,41.42601782,199.02,199.01,3.57586741]
[1755909838534,0.68,199.09,199.01,4.35220202]
[1755909838738,5.0,199.04,199.03,26.0]
[1755909838946,4.08,199.04,199.03,33.21402455]
[1755909839237,4.32220202,199.14,199.03,33.21402455]
[1755909839410,39.1,199.13,199.09,3.64220202]
[1755909839613,39.1,199.13,199.08,3.64220202]
[1755909839807,39.1,199.13,199.03,26.0]
[1755909839808,0.68,199.12,199.07,3.64220202]
[1755909840011,39.1,199.13,199.08,3.56899495]
[1755909840254,0.68,199.11,199.07,3.64220202]
[1755909840425,39.1,199.1,199.08,3.56885228]
[1755909840614,3.64220202,199.14,199.07,3.64220202]
[1755909840615,4.32220202,199.14,199.09,3.56869211]
[1755909840810,28.67589701,199.16,199.1,3.64220202]
[1755909841117,39.1,199.15,199.1,3.64220202]
[1755909841339,0.68,199.14,199.11,3.56805132]
[1755909841512,0.68,199.14,199.04,26.0]
[1755909841513,4.32220202,199.14,199.07,3.64220202]
[1755909841711,4.32220202,199.13,199.08,3.56846267]
[1755909841913,39.78,199.12,199.09,3.56846267]
[1755909842216,39.78,199.11,199.04,26.0]
[1755909842552,39.1,199.1,199.08,3.64220202]
[1755909843340,39.1,199.1,199.04,26.0]
[1755909843519,39.1,199.1,199.08,3.64220202]
[1755909843851,39.1,199.1,198.93,247.7384493]
[1755909844046,39.1,199.1,199.08,3.64220202]
[1755909845619,39.1,199.1,199.09,3.64220202]
[1755909846219,10.0,199.11,199.09,3.64220202]
[1755909846429,39.1,199.1,199.09,3.64220202]
[1755909846628,39.1,199.1,199.09,7.20789077]
[1755909848946,10.0,199.11,199.09,7.20789077]
[1755909849251,39.12,199.1,199.09,3.64220202]
[1755909849427,39.12,199.1,199.09,7.20753806]
[1755909849628,39.12,199.1,199.09,3.56533604]
[1755909849936,10.0,199.15,199.09,7.20770205]
[1755909850138,10.0,199.15,199.13,3.64220202]
[1755909850336,39.12,199.14,199.13,3.64220202]
[1755909850522,10.0,199.15,199.13,7.20691268]
[1755909850719,39.12,199.14,199.07,26.0]
[1755909850920,39.12,199.14,199.08,3.56454541]
[1755909851143,39.12,199.14,199.09,3.56454541]
[1755909851144,49.12,199.14,199.09,3.56454541]
[1755909851453,49.8,199.14,199.1,3.56454541]
[1755909851651,10.0,199.12,199.11,3.56454541]
[1755909851818,0.68,199.13,199.11,7.20674743]
[1755909852019,10.68,199.13,199.12,3.64220202]
[1755909852319,10.0,199.12,199.01,28.67286501]
[1755909852648,39.8,199.11,199.1,3.64220202]
[1755909852849,0.68,199.11,199.1,3.64220202]
[1755909853029,39.8,199.11,199.1,3.64220202]
[1755909857323,10.0,199.1,198.98,15.078787]
[1755909857627,49.78,199.09,199.04,3.64220202]
[1755909857822,10.0,199.07,199.05,3.5807737]
[1755909858068,10.0,199.04,199.0,0.03]
[1755909858359,39.1,199.03,199.01,3.58139762]
[1755909858531,0.68,199.02,199.0,0.03]
[1755909858853,0.68,199.02,199.01,3.58152878]
[1755909859756,0.68,199.02,199.01,3.58034995]
[1755909861568,0.68,199.02,199.0,0.03]
[1755909861870,10.68,199.02,199.01,3.57869234]
[1755909862285,10.68,199.02,199.0,0.03]
[1755909862562,49.78,199.01,199.0,0.03]
[1755909862764,49.78,199.01,199.0,3.60799149]
[1755909862938,39.78,199.01,199.0,3.60799149]
[1755909863266,39.78,199.01,199.0,7.25019351]
[1755909863267,39.1,199.01,199.0,7.25019351]
[1755909863958,39.12,199.02,199.0,7.25019351]
[1755909864262,39.12,199.03,199.01,7.22019351]
[1755909864468,39.12,199.04,199.02,7.22019351]
[1755909864760,39.12,199.04,199.03,7.22019351]
[1755909865127,39.12,199.04,199.03,3.64220202]
[1755909865333,39.8,199.04,199.03,3.64220202]
[1755909865539,0.68,199.04,199.02,3.64220202]
[1755909865745,39.8,199.03,199.02,3.64220202]
[1755909866035,39.8,199.03,199.02,7.21911792]
[1755909867057,10.0,199.06,199.02,7.21911792]
[1755909867257,39.77,199.05,199.02,3.64220202]
[1755909867565,0.65,199.04,199.02,3.64220202]
[1755909867746,39.12,199.03,199.02,3.64220202]
[1755909867933,39.77,199.03,199.02,7.21924694]
[1755909868560,39.12,199.03,199.02,7.21924694]
[1755909869361,39.77,199.03,199.02,7.21924694]
[1755909870079,39.12,199.03,199.02,7.21924694]
[1755909870269,39.12,199.03,199.02,3.57704492]
[1755909870587,39.12,199.03,199.02,7.22035722]
[1755909870888,39.12,199.03,199.02,7.22025638]
[1755909871263,39.12,199.03,199.02,7.2203068]
[1755909871669,39.12,199.03,199.02,3.57810478]
[1755909871870,39.12,199.03,199.02,7.2203068]
[1755909872885,0.65,199.05,199.02,7.2203068]
[1755909873060,0.65,199.04,199.03,7.2203068]
[1755909873380,39.77,199.04,199.03,7.2203068]
[1755909873553,39.12,199.04,199.03,7.2203068]
[1755909873882,39.12,199.07,199.03,7.2203068]
[1755909874083,39.12,199.07,199.06,3.64220202]
[1755909874267,39.12,199.08,199.06,7.2203068]
[1755909874465,39.12,199.08,199.07,7.2203068]
[1755909874678,0.65,199.1,199.07,7.2203068]
[1755909874864,39.12,199.08,199.07,3.64220202]
[1755909875065,39.12,199.08,199.07,7.22251414]
[1755909875475,39.77,199.08,199.07,7.22251414]
[1755909876460,0.65,199.08,199.07,3.58031212]
[1755909876674,39.12,199.08,199.07,7.22251414]
[1755909879277,39.77,199.08,199.07,7.22251414]
[1755909879673,39.77,199.08,199.07,7.22931029]
[1755909880160,39.77,199.08,199.07,7.22928727]
[1755909880365,0.65,199.08,199.07,3.58708525]
[1755909880574,39.75,199.08,199.07,7.22928727]
[1755909880980,39.75,199.08,199.07,3.58708525]
[1755909881195,39.75,199.08,199.07,7.22928727]
[1755909881389,0.65,199.08,199.07,7.22928727]
[1755909881691,39.75,199.08,199.07,7.22928727]
[1755909882190,39.75,199.08,199.07,7.22288086]
[1755909883890,0.65,199.08,199.07,7.22288086]
[1755909884279,39.75,199.08,199.07,7.22288086]
[1755909885163,0.65,199.08,199.07,7.22288086]
[1755909885369,39.75,199.08,199.07,7.22288086]
[1755909886292,39.1,199.08,199.07,7.22288086]
[1755909886973,53.34559401,199.08,199.07,3.58067884]
[1755909887174,53.34559401,199.08,199.0,0.03]
[1755909887175,10.0,199.07,199.02,3.64220202]
[1755909887492,39.75,199.06,199.03,3.64220202]
[1755909887700,0.65,199.05,199.03,3.64220202]
[1755909887875,39.1,199.04,199.03,3.64220202]
[1755909888081,39.75,199.04,199.03,3.64220202]
[1755909888278,39.75,199.04,199.0,0.03]
[1755909888483,0.65,199.03,199.01,3.64220202]
[1755909888815,10.65,199.03,199.01,3.64220202]
[1755909888982,0.65,199.03,199.01,3.64220202]
[1755909889579,10.65,199.03,199.01,3.64220202]
[1755909889784,0.65,199.03,199.01,3.64220202]
[1755909890471,10.65,199.03,199.01,3.64220202]
[1755909891012,0.65,199.03,199.01,3.64220202]
[1755909891213,10.65,199.03,199.01,3.64220202]
[1755909891396,0.65,199.05,199.02,3.64220202]
[1755909891705,49.1,199.04,199.02,3.64220202]
[1755909891911,39.1,199.03,199.02,3.64220202]
[1755909892296,39.75,199.03,199.01,3.64220202]
[1755909893295,39.1,199.03,199.01,3.64220202]
[1755909893491,0.65,199.02,199.0,0.03]
[1755909893683,39.75,199.03,199.0,0.03]
[1755909894115,39.1,199.02,199.0,0.03]
[1755909894689,39.1,199.02,199.01,3.64220202]
[1755909895794,39.1,199.02,199.01,4.32220202]
[1755909895992,0.65,199.06,199.01,4.32220202]
[1755909895993,39.1,199.03,199.01,3.64220202]
[1755909896204,39.1,199.03,199.0,0.03]
[1755909896205,39.1,199.03,199.02,3.64220202]
[1755909897007,39.1,199.03,199.0,0.03]
[1755909897205,39.79,199.03,199.01,3.64220202]
[1755909897518,39.79,199.03,199.0,0.03]
[1755909897692,39.79,199.03,199.01,3.64220202]
[1755909898094,0.69,199.02,199.01,3.64220202]
[1755909899092,0.69,199.02,199.01,7.21309137]
[1755909899712,39.1,199.03,199.01,7.21309137]
[1755909899989,39.79,199.03,199.02,3.57088935]
[1755909900794,39.79,199.03,199.02,3.5717423]
[1755909904017,0.69,199.05,199.03,3.57286366]
[1755909904215,39.79,199.05,199.04,3.57286366]
[1755909904398,39.1,199.05,199.04,7.21506568]
[1755909904601,39.1,199.06,199.04,7.89506568]
[1755909904800,0.06,199.07,199.05,7.21506568]
[1755909905112,0.06,199.07,199.06,7.21506568]
[1755909905308,39.16,199.07,199.06,7.21506568]
[1755909905702,0.06,199.07,199.06,7.25864052]
[1755909905928,39.16,199.07,199.06,7.93853984]
[1755909906330,0.06,199.07,199.06,7.93853984]
[1755909907104,0.06,199.07,199.06,8.22286298]
[1755909909125,0.06,199.09,199.08,0.28432314]
[1755909909321,0.06,199.11,199.1,29.64220202]
[1755909909509,0.06,199.11,199.1,33.25853984]
[1755909909702,0.06,199.11,199.1,33.93853984]
[1755909910515,0.06,199.13,199.11,13.59559401]
[1755909910715,0.06,199.13,199.12,7.54286298]
[1755909910935,0.06,199.13,199.12,8.22286298]
[1755909911431,0.06,199.13,199.12,21.81845699]
[1755909912819,0.06,199.13,199.12,43.49625497]
[1755909913026,0.06,199.13,199.12,47.13845699]
[1755909913905,0.06,199.13,199.12,33.25853984]
[1755909914948,0.06,199.13,199.12,33.22953923]
[1755909915618,0.06,199.13,199.12,33.22815786]
[1755909917431,0.06,199.13,199.12,33.90815786]
[1755909917617,0.06,199.13,199.12,33.22815786]
[1755909919226,0.06,199.13,199.12,33.90815786]
[1755909919809,0.06,199.13,199.12,30.32220202]
[1755909920009,0.06,199.13,199.12,33.904189]
[1755909921245,0.06,199.13,199.12,33.224189]
[1755909923443,0.06,199.13,199.12,29.58198698]
[1755909923645,0.06,199.13,199.12,33.224189]
[1755909923814,0.06,199.13,199.12,29.64220202]
[1755909924135,0.06,199.13,199.12,33.22072176]
[1755909924720,0.06,199.13,199.12,21.78063891]
[1755909925538,0.06,199.13,199.12,21.10063891]
[1755909925738,0.06,199.13,199.12,21.78063891]
[1755909926250,0.06,199.13,199.12,21.10063891]
[1755909927817,0.06,199.13,199.12,21.81063891]
[1755909928936,0.06,199.13,199.12,21.10063891]
[1755909929631,0.06,199.13,199.12,19.46793189]
[1755909929829,0.06,199.13,199.12,23.11013391]
[1755909931230,0.06,199.13,199.12,23.82013391]
[1755909931822,0.06,199.17,199.14,13.87991715]
[1755909932146,0.7,199.25,199.17,0.28432314]
[1755909932362,0.7,199.25,199.24,3.64220202]
[1755909933067,0.7,199.25,199.24,29.64220202]
[1755909933943,0.7,199.25,199.24,3.64220202]
[1755909934146,0.7,199.25,199.13,0.5021845]
[1755909934147,0.7,199.25,199.17,26.0]
[1755909934324,0.7,199.25,199.22,3.64220202]
[1755909934527,0.7,199.25,199.23,3.64220202]
[1755909935325,10.7,199.25,199.23,3.64220202]
[1755909935520,0.7,199.24,199.23,3.64220202]
[1755909936727,0.7,199.24,199.2,26.0]
[1755909937048,0.7,199.23,199.22,3.64220202]
[1755909937830,0.7,199.23,199.22,7.21153903]
[1755909938441,0.7,199.25,199.22,7.21153903]
[1755909938647,0.7,199.24,199.22,3.64220202]
[1755909938849,0.7,199.23,199.22,3.64220202]
[1755909939151,0.7,199.23,199.22,3.56921645]
[1755909939328,0.7,199.23,199.2,29.64220202]
[1755909940229,0.7,199.23,199.21,3.57090144]
[1755909940561,0.7,199.22,199.2,29.64220202]
[1755909940744,3.64220202,199.26,199.21,3.5708333]
[1755909940948,13.64220202,199.26,199.21,3.5708333]
[1755909941146,13.64220202,199.26,199.21,3.64220202]
[1755909941344,0.7,199.25,199.21,3.64220202]
[1755909942547,0.7,199.25,199.22,3.54162135]
[1755909943432,3.84220202,199.27,199.22,3.54162135]
[1755909943655,0.7,199.24,199.22,3.54162135]
[1755909943863,0.7,199.24,199.2,26.0]
[1755909944048,0.7,199.24,199.21,7.18536607]
[1755909944248,0.7,199.24,199.22,3.54316405]
[1755909944766,13.64220202,199.26,199.23,3.54316405]
[1755909945066,10.0,199.25,199.2,29.64220202]
[1755909945271,3.64220202,199.22,199.17,3.64220202]
[1755909945456,0.7,199.21,199.18,3.54559211]
[1755909945659,0.7,199.21,199.19,3.54559211]
[1755909945845,0.7,199.21,199.2,3.54559211]
[1755909946048,4.34220202,199.21,199.17,26.03]
[1755909946366,0.7,199.2,199.18,3.54584981]
[1755909946675,0.7,199.2,199.19,3.54584981]
[1755909949171,0.7,199.2,199.19,3.55643717]
[1755909950868,0.7,199.2,199.17,0.03]
[1755909951080,10.0,199.21,199.18,3.56176536]
[1755909951282,0.7,199.19,199.17,0.03]
[1755909951579,0.7,199.19,199.18,3.56411865]
[1755909952172,13.64220202,199.21,199.18,3.56411865]
[1755909952470,14.34220202,199.21,199.19,3.56411865]
[1755909952690,3.64220202,199.21,199.2,3.56411865]
[1755909952853,13.64220202,199.21,199.2,3.56411865]
[1755909953254,4.34220202,199.21,199.2,3.56411865]
[1755909953453,14.34220202,199.21,199.2,3.56411865]
[1755909953849,10.7,199.23,199.2,3.56411865]
[1755909954172,0.7,199.22,199.21,3.5674129]
[1755909954374,0.7,199.22,199.17,0.03]
[1755909954554,10.0,199.23,199.17,0.03]
[1755909954754,0.7,199.21,199.17,0.03]
[1755909956674,10.0,199.2,199.17,0.03]
[1755909958661,3.64220202,199.18,199.17,0.03]
[1755909958863,42.66220202,199.18,199.17,0.03]
[1755909959262,52.66220202,199.18,199.17,0.03]
[1755909960457,56.33440402,199.18,199.17,0.03]
[1755909960957,10.0,199.14,199.13,0.03]
[1755909961163,10.28432314,199.12,199.11,0.03]
[1755909961381,10.0,199.08,199.07,0.03]
[1755909961574,13.64220202,199.08,199.07,0.03]
[1755909961887,10.0,199.04,199.02,0.03]
[1755909962194,52.68220202,199.03,199.02,0.03]
[1755909962482,43.37220202,199.03,199.02,0.03]
[1755909962690,53.37220202,199.03,199.02,0.03]
[1755909962894,52.68220202,199.03,199.02,0.03]
[1755909963058,42.68220202,199.03,199.02,0.03]
[1755909963260,52.68220202,199.03,199.02,0.03]
[1755909963564,49.04,199.03,199.02,0.03]
[1755909963985,49.04,199.03,199.02,3.58716]
[1755909964157,39.04,199.03,199.02,3.58716]
[1755909964487,39.04,199.03,199.02,7.22936202]
[1755909964697,39.04,199.09,199.03,13.59559401]
[1755909964984,39.04,199.09,199.07,3.64220202]
[1755909965486,39.04,199.09,199.03,26.0]
[1755909965487,52.68220202,199.09,199.03,26.0]
[1755909965657,3.64220202,199.08,199.04,3.55363728]
[1755909966282,42.68220202,199.09,199.04,3.55363728]
[1755909966488,52.68220202,199.09,199.03,3.64220202]
[1755909967397,52.68220202,199.09,199.04,3.55174847]
[1755909967562,39.04,199.08,199.04,3.55174847]
[1755909967884,39.04,199.08,199.04,3.64220202]
[1755909968693,10.0,199.09,199.05,3.54959965]
[1755909969081,39.04,199.08,199.05,7.19180167]
[1755909969288,39.04,199.08,199.05,3.64220202]
[1755909970264,39.04,199.08,199.04,3.64220202]
[1755909970480,39.04,199.08,199.03,3.64220202]
[1755909970999,39.04,199.07,199.04,3.54796432]
[1755909971502,39.04,199.07,199.03,3.64220202]
[1755909971663,10.0,199.03,199.02,0.03]
[1755909971861,49.04,199.03,199.02,0.03]
[1755909972070,52.68220202,199.03,199.02,0.03]
[1755909981279,49.04,199.03,199.02,0.03]
[1755909981502,52.68220202,199.03,199.02,0.03]
[1755909986289,49.04,199.03,199.02,0.03]
[1755909986488,52.68220202,199.03,199.02,0.03]
[1755909988003,10.0,199.03,199.02,0.03]
[1755909988180,49.06,199.03,199.02,0.03]
[1755909988809,10.0,199.03,199.02,0.03]
[1755909989015,10.0,199.05,199.02,0.03]
[1755909989181,39.06,199.04,199.03,3.64220202]
[1755909989384,39.06,199.04,199.02,0.03]
[1755909989385,49.06,199.04,199.02,0.03]
[1755909991594,10.0,199.06,199.02,0.03]
[1755909991810,39.06,199.05,199.03,7.19489723]
[1755909991996,39.06,199.05,199.02,29.67220202]
[1755909992187,39.06,199.05,199.03,3.55274455]
[1755909992389,39.06,199.04,199.03,3.55274455]
[1755909993612,0.06,199.07,199.03,3.55274455]
[1755909993613,10.06,199.07,199.03,7.19494657]
[1755909993799,39.06,199.06,199.05,3.64220202]
[1755909994001,0.06,199.07,199.05,7.19494657]
[1755909994210,0.06,199.07,199.06,7.19707836]
[1755909994401,0.06,199.07,199.06,3.64220202]
[1755909994713,0.06,199.07,199.06,7.19778757]
[1755909995015,0.06,199.07,199.06,7.19750229]
[1755909995601,0.06,199.07,199.06,20.7930963]
[1755909995829,0.06,199.07,199.06,21.07741944]
[1755909996186,0.06,199.07,199.06,3.55530027]
[1755909996408,0.06,199.07,199.06,33.19750229]
[1755909997305,0.06,199.07,199.06,29.55530027]
[1755909997483,0.06,199.07,199.06,33.20098085]
[1755909998102,0.06,199.07,199.06,33.201268]
[1755909998812,0.06,199.07,199.06,47.08118515]
[1755909999317,0.06,199.07,199.06,43.43898313]
[1755909999520,0.06,199.07,199.06,46.79686201]
[1755909999689,0.06,199.07,199.06,33.201268]
[1755910002122,0.06,199.07,199.06,33.20568009]
[1755910005716,13.70220202,199.07,199.03,0.03]
[1755910005910,3.64220202,199.05,199.04,3.67941405]
[1755910006118,42.74220202,199.05,199.04,3.67941405]
[1755910006625,42.74220202,199.05,199.03,0.03]
[1755910006626,10.0,199.04,199.03,0.03]
[1755910006794,10.0,199.04,199.03,3.65905565]
[1755910006993,10.0,199.04,199.03,3.65899847]
[1755910008397,49.1,199.04,199.03,3.65899847]
[1755910009117,52.74220202,199.04,199.03,3.65899847]
[1755910010805,52.74220202,199.04,199.03,0.03]
[1755910011009,49.1,199.04,199.03,0.03]
[1755910011324,52.74220202,199.04,199.03,0.03]
[1755910011709,52.70220202,199.04,199.03,0.03]
[1755910011905,49.06,199.04,199.03,0.03]
[1755910012105,13.92652516,199.04,199.03,0.03]
[1755910012311,15.93844516,199.04,199.03,0.03]
[1755910012510,13.64220202,199.04,199.03,0.03]
[1755910012920,52.76220202,199.04,199.03,0.03]
[1755910017324,66.64211917,199.04,199.03,0.03]